bitfinex-derivatives/quotes_BTCF0:USTF0_20250320
["timestamp","ask_amount","ask_price","bid_price","bid_amount"]
[1742450672486,0.14133887,85928.0,85927.0,0.1599]
[1742450672686,0.41471263,85928.0,85927.0,0.1599]
[1742450672887,0.31471263,85928.0,85927.0,0.2530004]
[1742450673096,0.31479331,85928.0,85927.0,0.2530004]
[1742450674293,0.31475521,85928.0,85927.0,0.2530004]
[1742450674805,0.31475521,85928.0,85927.0,0.1599]
[1742450674995,0.3147789,85928.0,85927.0,0.2530004]
[1742450675595,0.3465789,85928.0,85927.0,0.2530004]
[1742450675797,0.3147789,85928.0,85927.0,0.2530004]
[1742450676293,0.3465789,85928.0,85927.0,0.2530004]
[1742450676498,0.3147789,85928.0,85927.0,0.2530004]
[1742450677500,0.3465789,85928.0,85927.0,0.1599]
[1742450677899,0.4147789,85928.0,85927.0,0.1599]
[1742450678400,0.3465789,85928.0,85927.0,0.1599]
[1742450678798,0.3830789,85928.0,85927.0,0.079]
[1742450679105,0.3512789,85928.0,85927.0,0.079]
[1742450679307,0.3512789,85928.0,85927.0,0.2538004]
[1742450681397,0.4147789,85928.0,85927.0,0.2538004]
[1742450681806,0.3205789,85928.0,85927.0,0.2538004]
[1742450682114,0.4147789,85928.0,85927.0,0.2538004]
[1742450682299,0.4147789,85928.0,85927.0,0.1607]
[1742450684608,0.4147789,85928.0,85926.0,0.01184152]
[1742450684609,0.0931004,85927.0,85926.0,0.01184152]
[1742450684811,0.0931015,85926.0,85925.0,0.1646]
[1742450685000,0.2848303,85926.0,85925.0,0.1646]
[1742450685307,0.28490285,85926.0,85925.0,0.17658975]
[1742450685617,0.31310285,85926.0,85925.0,0.17658975]
[1742450686304,0.28490285,85926.0,85925.0,0.17658975]
[1742450688406,0.38490285,85926.0,85925.0,0.17658975]
[1742450689196,0.28490285,85926.0,85925.0,0.17658975]
[1742450689709,0.38490285,85926.0,85925.0,0.17658975]
[1742450690011,0.31670285,85926.0,85925.0,0.17658975]
[1742450690312,0.28490285,85926.0,85925.0,0.17658975]
[1742450690915,0.38490285,85926.0,85925.0,0.17658975]
[1742450691414,0.49618285,85926.0,85925.0,0.17658975]
[1742450691711,0.40118285,85926.0,85925.0,0.26969225]
[1742450692509,0.49618285,85926.0,85925.0,0.26969225]
[1742450692711,0.40118285,85926.0,85925.0,0.26969225]
[1742450693112,0.49618285,85926.0,85925.0,0.17658975]
[1742450693315,0.49624134,85926.0,85925.0,0.17658975]
[1742450694214,0.40124134,85926.0,85925.0,0.26969225]
[1742450697017,0.49624134,85926.0,85925.0,0.17658975]
[1742450698210,0.42454134,85926.0,85925.0,0.17658975]
[1742450698417,0.38496134,85926.0,85925.0,0.17658975]
[1742450698614,0.47454134,85926.0,85925.0,0.01198975]
[1742450698809,0.47454134,85926.0,85921.0,0.0832]
[1742450698810,0.0931058,85922.0,85921.0,0.0832]
[1742450699015,0.13119188,85922.0,85921.0,0.0832]
[1742450699215,0.30289188,85922.0,85921.0,0.0832]
[1742450699417,0.31243327,85922.0,85921.0,0.04681066]
[1742450699913,0.31243327,85922.0,85921.0,0.05853966]
[1742450700517,0.32063327,85922.0,85921.0,0.05853966]
[1742450701118,0.31243327,85922.0,85921.0,0.05853966]
[1742450701724,0.31243327,85922.0,85921.0,0.14623966]
[1742450702812,0.31267017,85922.0,85921.0,0.14623966]
[1742450705626,0.31267017,85922.0,85913.0,0.0894]
[1742450705627,0.0465559,85917.0,85913.0,0.0894]
[1742450705829,0.0931145,85914.0,85913.0,0.0894]
[1742450706125,0.14447887,85914.0,85913.0,0.0894]
[1742450706425,0.31947887,85914.0,85913.0,0.0894]
[1742450706617,0.38767887,85914.0,85913.0,0.10098985]
[1742450706818,0.31595816,85914.0,85913.0,0.01158985]
[1742450707019,0.31595816,85914.0,85911.0,0.3608]
[1742450707020,0.0931166,85912.0,85911.0,0.3608]
[1742450707317,0.1029865,85912.0,85911.0,0.37278222]
[1742450707521,0.11266026,85912.0,85911.0,0.37278222]
[1742450708716,0.14438923,85912.0,85911.0,0.37278222]
[1742450709828,0.11258923,85912.0,85911.0,0.37278222]
[1742450710018,0.14438923,85912.0,85911.0,0.37278222]
[1742450711231,0.14438923,85912.0,85911.0,0.01198222]
[1742450711431,0.0931199,85909.0,85908.0,0.3608]
[1742450711618,0.21419877,85909.0,85908.0,0.3608]
[1742450711929,0.24599877,85909.0,85908.0,0.3608]
[1742450712129,0.25567253,85909.0,85908.0,0.3608]
[1742450712927,0.22389235,85909.0,85908.0,0.3727514]
[1742450714229,0.39399235,85909.0,85908.0,0.3727514]
[1742450714431,0.42229235,85909.0,85908.0,0.3727514]
[1742450714621,0.49399235,85909.0,85908.0,0.3727514]
[1742450717332,0.42229235,85909.0,85908.0,0.3727514]
[1742450717531,0.49399235,85909.0,85908.0,0.3727514]
[1742450718334,0.42229235,85909.0,85908.0,0.3727514]
[1742450719431,0.49399235,85909.0,85908.0,0.3727514]
[1742450719828,0.49403235,85909.0,85908.0,0.0119514]
[1742450720127,0.093122,85907.0,85906.0,0.0876]
[1742450720323,0.10794069,85907.0,85906.0,0.0876]
[1742450720524,0.21934069,85907.0,85906.0,0.0876]
[1742450720725,0.31091445,85907.0,85906.0,0.0876]
[1742450720924,0.67164718,85907.0,85906.0,0.0876]
[1742450721728,0.67164718,85907.0,85906.0,0.09920881]
[1742450723438,0.64334718,85907.0,85906.0,0.09920881]
[1742450723638,0.02442518,85907.0,85906.0,0.19233191]
[1742450723933,0.24415187,85918.0,85909.0,0.0931131]
[1742450724133,0.24415187,85918.0,85907.0,0.0465609]
[1742450724134,0.0931134,85916.0,85915.0,0.0931134]
[1742450724330,0.0931134,85916.0,85915.0,0.2609134]
[1742450725234,0.24415187,85918.0,85917.0,0.0931112]
[1742450725938,0.0931101,85918.0,85917.0,0.0931112]
[1742450726140,0.24415187,85919.0,85918.0,0.0931101]
[1742450726337,0.24415187,85919.0,85918.0,0.1747101]
[1742450726741,0.33726087,85919.0,85918.0,0.1747101]
[1742450726936,0.33726087,85919.0,85918.0,0.0816]
[1742450727130,0.42236087,85919.0,85918.0,0.0816]
[1742450728943,0.42236087,85919.0,85918.0,0.1747101]
[1742450729840,0.178209,85919.0,85918.0,0.1747101]
[1742450730240,0.093109,85919.0,85918.0,0.1747101]
[1742450730830,0.29070507,85922.0,85920.0,0.0931069]
[1742450730831,0.0931079,85921.0,85920.0,0.0931069]
[1742450731434,0.24415187,85922.0,85921.0,0.0931069]
[1742450732039,0.24415187,85922.0,85921.0,0.5375069]
[1742450733047,0.33725767,85922.0,85921.0,0.5375069]
[1742450733247,0.0931002,85928.0,85923.0,0.0465518]
[1742450733437,0.0931002,85928.0,85927.0,0.0930993]
[1742450735643,0.04851471,85930.0,85929.0,0.0930982]
[1742450735644,0.00196601,85930.0,85929.0,0.0930982]
[1742450735844,0.10493373,85930.0,85929.0,0.0930982]
[1742450736245,0.11468968,85930.0,85929.0,0.1785982]
[1742450736745,0.02159258,85930.0,85929.0,0.1785982]
[1742450736945,0.11468968,85930.0,85929.0,0.1785982]
[1742450737151,0.11453218,85930.0,85929.0,0.1785982]
[1742450737648,0.11453218,85930.0,85929.0,0.19031299]
[1742450737845,0.02143508,85930.0,85929.0,0.19031299]
[1742450738054,0.11453218,85930.0,85929.0,0.19031299]
[1742450738545,0.14283218,85930.0,85929.0,0.19031299]
[1742450738945,0.11453218,85930.0,85929.0,0.19031299]
[1742450739155,0.18821906,85930.0,85929.0,0.19031299]
[1742450741041,0.01172196,85930.0,85929.0,0.19031299]
[1742450741237,0.10481906,85930.0,85929.0,0.19031299]
[1742450742252,0.09506311,85930.0,85929.0,0.19031299]
[1742450742445,0.00196601,85930.0,85929.0,0.19031299]
[1742450746343,0.00196601,85930.0,85929.0,0.27991299]
[1742450749555,0.24415187,85940.0,85933.0,0.0465466]
[1742450749761,0.11928781,85942.0,85940.0,0.0930863]
[1742450749958,0.04297681,85942.0,85941.0,0.0930852]
[1742450750157,0.04297681,85942.0,85941.0,0.3630852]
[1742450750350,0.00223196,85942.0,85941.0,0.5239852]
[1742450750758,0.27873259,85945.0,85944.0,0.093082]
[1742450750759,0.24256962,85945.0,85944.0,0.093082]
[1742450750961,0.24256962,85945.0,85944.0,0.103082]
[1742450751351,0.24256962,85945.0,85944.0,0.266682]
[1742450753049,0.00251487,85946.0,85945.0,0.0930809]
[1742450753250,0.00251487,85946.0,85945.0,0.3230809]
[1742450753566,0.00251487,85946.0,85945.0,0.4051809]
[1742450753764,0.09559467,85946.0,85945.0,0.4051809]
[1742450754363,0.18259467,85946.0,85945.0,0.4051809]
[1742450755065,0.18259467,85946.0,85945.0,0.41380716]
[1742450756959,0.19206044,85946.0,85945.0,0.41380716]
[1742450758263,0.19206044,85946.0,85945.0,0.18380716]
[1742450758649,0.18259467,85946.0,85945.0,0.18380716]
[1742450760451,0.08951487,85946.0,85945.0,0.18380716]
[1742450761270,0.18259467,85946.0,85945.0,0.18380716]
[1742450762266,0.08951487,85946.0,85945.0,0.18380716]
[1742450762663,0.18259467,85946.0,85945.0,0.18380716]
[1742450763459,0.08951487,85946.0,85945.0,0.18380716]
[1742450769174,0.09898523,85946.0,85945.0,0.18380716]
[1742450770062,0.08951487,85946.0,85945.0,0.18380716]
[1742450771472,0.18259467,85946.0,85945.0,0.26870716]
[1742450771774,0.26889467,85946.0,85945.0,0.37994716]
[1742450772071,0.26889467,85946.0,85945.0,0.18660716]
[1742450772869,0.17581487,85946.0,85945.0,0.29784716]
[1742450773169,0.17581487,85946.0,85945.0,0.26730716]
[1742450779564,0.17581487,85946.0,85945.0,1.76730716]
[1742450780868,0.17581487,85946.0,85945.0,0.26730716]
[1742450781069,0.17581487,85946.0,85945.0,0.62810716]
[1742450783069,0.17581487,85946.0,85945.0,0.73934716]
[1742450785182,0.08951487,85946.0,85945.0,0.73934716]
[1742450785517,0.08951487,85946.0,85945.0,1.02934716]
[1742450785872,0.00251487,85946.0,85945.0,1.02934716]
[1742450791188,0.00267136,85950.0,85949.0,0.0930765]
[1742450791379,0.00267136,85950.0,85949.0,0.3230765]
[1742450791574,0.00267136,85950.0,85949.0,0.5699765]
[1742450793076,0.00267136,85950.0,85949.0,0.6811765]
[1742450795676,0.00267136,85950.0,85948.0,0.0465388]
[1742450795677,0.0465386,85949.0,85945.0,0.36942626]
[1742450795884,0.0930798,85946.0,85945.0,0.46250716]
[1742450796383,0.2553798,85946.0,85945.0,0.46250716]
[1742450796588,0.2448,85946.0,85945.0,0.46250716]
[1742450797184,0.2448,85946.0,85945.0,0.54100716]
[1742450797387,0.1623,85946.0,85945.0,0.54100716]
[1742450797592,0.1623,85946.0,85945.0,0.62150716]
[1742450797790,0.16234,85946.0,85945.0,0.62150716]
[1742450798885,0.08314,85946.0,85945.0,0.62150716]
[1742450799086,0.08314,85946.0,85945.0,0.90150716]
[1742450799390,0.08314,85946.0,85945.0,1.26230716]
[1742450799786,0.0831,85946.0,85945.0,1.26230716]
[1742450800694,0.08314,85946.0,85945.0,1.26230716]
[1742450802178,0.00267136,85950.0,85949.0,0.0930765]
[1742450802391,0.00267136,85950.0,85949.0,0.2872765]
[1742450802892,0.00267136,85950.0,85949.0,1.7872765]
[1742450803096,0.08737136,85950.0,85949.0,1.7872765]
[1742450803486,0.08737136,85950.0,85949.0,0.2872765]
[1742450804585,0.08737136,85950.0,85949.0,0.5172765]
[1742450804785,0.00267136,85950.0,85949.0,0.5172765]
[1742450804984,0.17197136,85950.0,85949.0,0.5172765]
[1742450805696,0.17197136,85950.0,85949.0,0.4060765]
[1742450805998,0.17197136,85950.0,85949.0,0.2042765]
[1742450806196,0.17197136,85950.0,85949.0,0.2869765]
[1742450807282,0.17197136,85950.0,85949.0,0.5469765]
[1742450809399,0.17197136,85950.0,85949.0,0.4357765]
[1742450809598,0.17197136,85950.0,85949.0,0.5469765]
[1742450811695,0.17197136,85950.0,85949.0,0.6264765]
[1742450814796,0.08927136,85950.0,85949.0,0.6264765]
[1742450815001,0.08927136,85950.0,85949.0,0.5152765]
[1742450815191,0.08927136,85950.0,85949.0,0.6264765]
[1742450815386,0.17447136,85950.0,85949.0,0.6264765]
[1742450817293,0.25537136,85950.0,85949.0,0.6264765]
[1742450820196,0.17447136,85950.0,85949.0,0.6264765]
[1742450821504,0.26754686,85950.0,85949.0,0.6264765]
[1742450821808,0.26754686,85950.0,85949.0,0.3664765]
[1742450822005,0.17447136,85950.0,85949.0,0.3664765]
[1742450823399,0.26754686,85950.0,85949.0,0.2552765]
[1742450823704,0.17447136,85950.0,85949.0,0.2837765]
[1742450823908,0.17447136,85950.0,85949.0,0.3682765]
[1742450824107,0.17447136,85950.0,85949.0,1.8682765]
[1742450827499,0.17447136,85950.0,85949.0,0.5070765]
[1742450827702,0.08927136,85950.0,85949.0,0.6182765]
[1742450827896,0.16807136,85950.0,85949.0,0.6182765]
[1742450836402,0.26114686,85950.0,85949.0,0.6182765]
[1742450836601,0.26114686,85950.0,85949.0,0.25]
[1742450836805,0.26114686,85950.0,85949.0,0.2042365]
[1742450836806,0.16807136,85950.0,85949.0,0.2042365]
[1742450837003,0.16807136,85950.0,85949.0,0.3622365]
[1742450837203,0.16807136,85950.0,85949.0,1.8622365]
[1742450838109,0.16807136,85950.0,85949.0,0.3622365]
[1742450839307,0.16807136,85950.0,85949.0,0.7230365]
[1742450840813,0.16807136,85950.0,85949.0,0.55136]
[1742450840814,0.26114686,85950.0,85949.0,0.55136]
[1742450841203,0.0930765,85949.0,85948.0,0.37872]
[1742450841410,0.0930765,85949.0,85933.0,0.30052381]
[1742450841411,0.0930928,85934.0,85933.0,0.30052381]
[1742450841612,0.0930928,85934.0,85933.0,0.18635952]
[1742450841808,0.1213928,85934.0,85933.0,0.00017462]
[1742450842002,0.0930928,85934.0,85933.0,0.00017462]
[1742450842205,0.1465469,85934.0,85931.0,0.0930946]
[1742450842406,0.453895,85932.0,85931.0,0.2327381]
[1742450842715,0.453895,85932.0,85931.0,0.1396421]
[1742450842910,0.622395,85932.0,85931.0,0.1861906]
[1742450843111,0.622395,85932.0,85931.0,0.0930946]
[1742450843312,0.658895,85932.0,85931.0,0.0930946]
[1742450843615,0.769055,85932.0,85931.0,0.0930946]
[1742450844814,0.832555,85932.0,85931.0,0.0930946]
[1742450845016,0.0930971,85930.0,85929.0,0.01171479]
[1742450845217,0.0931036,85924.0,85923.0,0.00017462]
[1742450845532,0.0931036,85924.0,85915.0,0.0867]
[1742450845533,0.0931123,85916.0,85915.0,0.0465564]
[1742450845719,0.4539123,85916.0,85915.0,0.0465564]
[1742450845912,0.0931123,85916.0,85915.0,0.0465564]
[1742450846216,0.1607,85917.0,85916.0,0.0931123]
[1742450846419,0.1607,85917.0,85916.0,0.2646123]
[1742450847713,0.1607,85917.0,85916.0,0.2656123]
[1742450847908,0.1607,85917.0,85916.0,0.2666123]
[1742450848221,0.1607,85917.0,85916.0,1.7666123]
[1742450849511,0.2538112,85917.0,85916.0,1.7666123]
[1742450849923,0.1607,85917.0,85916.0,1.7666123]
[1742450851421,0.0815,85917.0,85916.0,1.7666123]
[1742450851622,0.0864,85923.0,85922.0,0.0931058]
[1742450851815,0.1669,85923.0,85922.0,0.0931058]
[1742450853521,0.1669,85923.0,85922.0,0.0941058]
[1742450853828,0.1669,85923.0,85922.0,0.0951058]
[1742450858131,0.2600047,85923.0,85922.0,0.0951058]
[1742450859123,0.2600047,85923.0,85922.0,0.0941058]
[1742450859423,0.2600047,85923.0,85922.0,0.0951058]
[1742450860423,0.1669,85923.0,85922.0,0.0951058]
[1742450860620,0.2600047,85923.0,85922.0,0.0951058]
[1742450861625,0.0931024,85926.0,85925.0,0.1396511]
[1742450861820,0.0931024,85926.0,85925.0,0.2226511]
[1742450862229,0.1773024,85926.0,85925.0,0.2226511]
[1742450862429,0.2610024,85926.0,85925.0,0.2226511]
[1742450863032,0.2610024,85926.0,85925.0,0.2236511]
[1742450863827,0.2610024,85926.0,85925.0,0.2246511]
[1742450864026,0.2610024,85926.0,85925.0,0.002]
[1742450864228,0.3733024,85926.0,85925.0,0.002]
[1742450864430,0.4450024,85926.0,85925.0,0.002]
[1742450865125,0.3450024,85926.0,85925.0,0.0951025]
[1742450865326,0.3450024,85926.0,85925.0,0.0941025]
[1742450865530,0.3450024,85926.0,85925.0,0.001]
[1742450865833,0.0931069,85921.0,85920.0,0.0465538]
[1742450866034,0.4539069,85921.0,85920.0,0.0465538]
[1742450866234,0.6204069,85921.0,85920.0,0.0465538]
[1742450866625,0.6204069,85921.0,85920.0,0.0812]
[1742450866827,0.0931123,85916.0,85915.0,0.0117951]
[1742450867027,0.0921123,85916.0,85915.0,0.0931134]
[1742450867228,0.2608123,85916.0,85915.0,0.0931134]
[1742450867429,0.2598123,85916.0,85915.0,0.1743134]
[1742450867739,0.3412123,85916.0,85915.0,0.1743134]
[1742450867944,0.3412123,85916.0,85915.0,0.18591878]
[1742450868935,0.3412123,85916.0,85915.0,0.18991878]
[1742450870839,0.2598123,85916.0,85915.0,0.18991878]
[1742450871027,0.0864,85916.0,85915.0,0.18991878]
[1742450871232,0.3608,85921.0,85920.0,0.093108]
[1742450871738,0.4539069,85921.0,85920.0,0.093108]
[1742450872130,0.4539069,85921.0,85920.0,0.259308]
[1742450872634,0.4539069,85921.0,85920.0,0.261308]
[1742450872836,0.4405,85921.0,85920.0,0.261308]
[1742450873143,0.5336069,85921.0,85920.0,0.261308]
[1742450873347,0.4405,85921.0,85920.0,0.262308]
[1742450873842,0.4405,85921.0,85920.0,0.263308]
[1742450874235,0.5336069,85921.0,85920.0,0.263308]
[1742450874841,0.4405,85921.0,85920.0,0.263308]
[1742450875233,0.0797,85921.0,85920.0,0.263308]
[1742450875932,0.1728069,85921.0,85920.0,0.261308]
[1742450876129,0.1728069,85921.0,85920.0,0.263308]
[1742450877645,0.2548069,85921.0,85920.0,0.263308]
[1742450878249,0.1617,85921.0,85920.0,0.263308]
[1742450878846,0.1617,85921.0,85920.0,0.261308]
[1742450879038,0.1617,85921.0,85920.0,0.263308]
[1742450879544,0.1617,85921.0,85920.0,0.261308]
[1742450879741,0.1617,85921.0,85920.0,0.263308]
[1742450880046,0.2548069,85921.0,85920.0,0.263308]
[1742450881043,0.1617,85921.0,85920.0,0.261308]
[1742450881251,0.0797,85921.0,85920.0,0.263308]
[1742450882250,0.046548,85932.0,85931.0,0.0930939]
[1742450882458,0.046548,85932.0,85931.0,0.0806]
[1742450883247,0.132648,85932.0,85931.0,0.0806]
[1742450883451,0.132648,85932.0,85931.0,0.258596]
[1742450883652,0.215648,85932.0,85931.0,0.258596]
[1742450884659,0.215648,85932.0,85931.0,0.173696]
[1742450887756,0.215648,85932.0,85931.0,0.0806]
[1742450888256,0.215648,85932.0,85931.0,0.173696]
[1742450888554,0.215648,85932.0,85931.0,0.257396]
[1742450893863,0.1691,85932.0,85931.0,0.257396]
[1742450894064,0.0861,85932.0,85931.0,0.257396]
[1742450894563,0.179195,85932.0,85931.0,0.257396]
[1742450894762,0.261595,85932.0,85931.0,0.257396]
[1742450895473,0.261595,85932.0,85929.0,0.0930962]
[1742450895474,0.0930971,85930.0,85929.0,0.0930962]
[1742450895773,0.0930971,85930.0,85929.0,0.0859]
[1742450895975,0.1733971,85930.0,85929.0,0.1789982]
[1742450896774,0.2557971,85930.0,85929.0,0.2653982]
[1742450905082,0.6165971,85930.0,85929.0,0.2653982]
[1742450906583,0.6165971,85930.0,85929.0,0.1723]
[1742450907193,0.72401235,85930.0,85929.0,0.1723]
[1742450907481,0.72401235,85930.0,85929.0,0.2653982]
[1742450908985,0.6165971,85930.0,85929.0,0.2653982]
[1742450909682,0.2557971,85930.0,85929.0,0.2653982]
[1742450909886,0.6165971,85930.0,85929.0,0.2653982]
[1742450915390,0.6165971,85930.0,85918.0,0.1226901]
[1742450915391,0.093109,85919.0,85918.0,0.1226901]
[1742450915581,0.453909,85919.0,85918.0,0.1226901]
[1742450915882,0.3608,85919.0,85918.0,0.0931101]
[1742450916082,0.0931009,85928.0,85927.0,0.0465496]
[1742450917774,0.0931009,85928.0,85927.0,0.2132496]
[1742450917976,0.2530009,85928.0,85927.0,0.2132496]
[1742450919593,0.6138009,85928.0,85927.0,0.2132496]
[1742450921192,0.2530009,85928.0,85927.0,0.2132496]
[1742450921592,0.6138009,85928.0,85927.0,0.2132496]
[1742450923995,0.2530009,85928.0,85927.0,0.2132496]
[1742450924197,0.6138009,85928.0,85927.0,0.2132496]
[1742450932896,0.4399,85928.0,85927.0,0.2132496]
[1742450933203,0.3608,85928.0,85927.0,0.2132496]
[1742450933398,0.10660533,85930.0,85929.0,0.0930982]
[1742450933901,0.3608,85934.0,85933.0,0.0930939]
[1742450934111,0.31436867,85940.0,85939.0,0.0930874]
[1742450934301,0.31436867,85940.0,85939.0,0.3830874]
[1742450934602,4e-05,85948.0,85947.0,0.0930787]
[1742450934798,0.00267136,85950.0,85949.0,0.0930765]
[1742450935507,0.00267136,85950.0,85949.0,0.2569765]
[1742450938000,0.09574686,85950.0,85949.0,0.2684206]
[1742450938201,0.00267136,85950.0,85949.0,0.2684206]
[1742450940205,0.0122011,85950.0,85949.0,0.2684206]
[1742450941208,0.00267136,85950.0,85949.0,0.2684206]
[1742450941400,0.17994686,85950.0,85949.0,0.2684206]
[1742450941603,0.17107136,85950.0,85949.0,0.2684206]
[1742450942326,0.08687136,85950.0,85949.0,0.2684206]
[1742450942510,0.00267136,85950.0,85949.0,0.2684206]
[1742450944306,0.00267136,85950.0,85949.0,4.2684206]
[1742450946316,0.08227136,85950.0,85949.0,4.2684206]
[1742450947416,0.17534686,85950.0,85949.0,4.2684206]
[1742450947621,0.35179957,85950.0,85949.0,4.2684206]
[1742450948909,0.34224686,85950.0,85949.0,4.2684206]
[1742450949917,0.35177694,85950.0,85949.0,4.2684206]
[1742450950505,0.17240144,85950.0,85949.0,4.2684206]
[1742450950814,0.10133603,85950.0,85949.0,4.2684206]
[1742450951019,0.18073591,85950.0,85949.0,4.2684206]
[1742450951404,0.27381141,85950.0,85949.0,4.2684206]
[1742450951903,0.26427694,85950.0,85949.0,4.2684206]
[1742450953317,0.34947694,85950.0,85949.0,4.2684206]
[1742450953912,0.35905126,85950.0,85949.0,4.2684206]
[1742450954417,0.34947694,85950.0,85949.0,4.2684206]
[1742450954718,0.26427694,85950.0,85949.0,4.2684206]
[1742450955224,0.27385202,85950.0,85949.0,4.2684206]
[1742450955716,0.18077652,85950.0,85949.0,4.2684206]
[1742450955918,0.27385202,85950.0,85949.0,4.2684206]
[1742450956623,0.18077652,85950.0,85949.0,4.2684206]
[1742450957429,0.10137652,85950.0,85949.0,4.2684206]
[1742450958313,0.18087652,85950.0,85949.0,4.2684206]
[1742450959823,0.10137652,85950.0,85949.0,4.2684206]
[1742450960222,0.09180144,85950.0,85949.0,4.2684206]
[1742450960412,0.26437694,85950.0,85949.0,4.2684206]
[1742450969829,0.29267694,85950.0,85949.0,4.0114441]
[1742450970333,0.26437694,85950.0,85949.0,4.0114441]
[1742450970824,0.27297694,85950.0,85949.0,4.0114441]
[1742450971219,0.36437694,85950.0,85949.0,4.0114441]
[1742450974230,0.27297694,85950.0,85949.0,4.0114441]
[1742450974435,0.30087694,85950.0,85949.0,4.0114441]
[1742450976213,0.70917694,85950.0,85949.0,4.0114441]
[1742450981338,0.77267694,85950.0,85949.0,4.0114441]
[1742450981540,0.70917694,85950.0,85949.0,4.0985441]
[1742450981949,0.67847694,85950.0,85949.0,4.0985441]
[1742450982443,0.70917694,85950.0,85949.0,4.0985441]
[1742450983139,0.70917694,85950.0,85949.0,4.0114441]
[1742450983333,0.77267694,85950.0,85949.0,4.0114441]
[1742450983646,0.77267694,85950.0,85949.0,3.97506474]
[1742450983647,0.78224488,85950.0,85949.0,3.97506474]
[1742450983832,0.78224494,85950.0,85949.0,3.97506474]
[1742450984659,0.77267694,85950.0,85949.0,3.97506474]
[1742450986558,1.49427694,85950.0,85949.0,3.98679406]
[1742450987259,1.49427694,85950.0,85949.0,4.06959406]
[1742450989040,1.49427694,85950.0,85949.0,4.15799406]
[1742450989855,1.50543694,85950.0,85949.0,4.15799406]
[1742450990161,1.43077694,85950.0,85949.0,4.15799406]
[1742450990346,1.60543694,85950.0,85949.0,4.24019406]
[1742450990854,1.60543694,85950.0,85949.0,4.15799406]
[1742450993160,1.60543694,85950.0,85949.0,4.06959406]
[1742450995065,1.60543694,85950.0,85949.0,4.15989406]
[1742450995245,1.23517694,85950.0,85949.0,4.15989406]
[1742450995451,0.3608,85950.0,85949.0,4.33727056]
[1742450995756,0.4538755,85950.0,85949.0,4.24419406]
[1742450995960,0.4538755,85950.0,85949.0,4.33727056]
[1742450998661,0.3608,85950.0,85949.0,4.33727056]
[1742450999254,0.4538755,85950.0,85949.0,4.33727056]
[1742450999456,0.3608,85950.0,85949.0,4.33727056]
[1742451000165,0.4538755,85950.0,85949.0,4.33727056]
[1742451000665,0.46339335,85950.0,85949.0,4.33727056]
[1742451000862,0.37031785,85950.0,85949.0,4.33727056]
[1742451001164,0.46339335,85950.0,85949.0,4.33727056]
[1742451002263,0.37031785,85950.0,85949.0,4.33727056]
[1742451002654,0.3608,85950.0,85949.0,4.33727056]
[1742451002861,0.3608,85950.0,85949.0,4.61727056]
[1742451004369,4e-05,85951.0,85950.0,0.0930755]
[1742451004665,4e-05,85951.0,85950.0,0.3730755]
[1742451004862,4e-05,85951.0,85950.0,0.5424755]
[1742451005654,0.00953375,85951.0,85950.0,0.5424755]
[1742451006757,0.00949375,85951.0,85950.0,0.5424755]
[1742451006965,0.00275599,85953.0,85950.0,0.5424755]
[1742451006966,0.00275599,85953.0,85952.0,0.0930733]
[1742451007165,0.00275599,85953.0,85952.0,0.3530733]
[1742451008061,0.00275599,85953.0,85952.0,0.5231733]
[1742451008662,0.01223594,85953.0,85952.0,0.6342933]
[1742451009661,0.01223594,85953.0,85952.0,0.5231733]
[1742451009857,0.01223594,85953.0,85952.0,0.6342933]
[1742451010458,0.00275599,85953.0,85952.0,0.6342933]
[1742451010662,0.01226606,85953.0,85952.0,0.6342933]
[1742451013471,4e-05,85954.0,85953.0,0.0930722]
[1742451013665,0.00284507,85955.0,85954.0,0.0930711]
[1742451013971,0.00284507,85955.0,85953.0,0.17]
[1742451013972,0.0930711,85954.0,85953.0,0.17]
[1742451014268,0.00954854,85954.0,85953.0,0.3741922]
[1742451014670,0.00284507,85955.0,85954.0,0.0930711]
[1742451014876,0.01244856,85955.0,85954.0,0.2630711]
[1742451017175,0.09604856,85955.0,85954.0,0.2630711]
[1742451018382,0.09604856,85955.0,85954.0,0.3741911]
[1742451020671,0.18911856,85955.0,85954.0,0.3741911]
[1742451021077,0.09604856,85955.0,85954.0,0.3741911]
[1742451021478,0.01244856,85955.0,85954.0,0.3741911]
[1742451021673,0.09574856,85955.0,85954.0,0.3741911]
[1742451022578,0.09574856,85955.0,85954.0,4.34925584]
[1742451023185,0.18881856,85955.0,85954.0,3.97506474]
[1742451023385,0.36171856,85955.0,85954.0,4.06813584]
[1742451025978,0.37130142,85955.0,85954.0,4.06813584]
[1742451026176,0.37130142,85955.0,85954.0,4.15723584]
[1742451026581,0.27823142,85955.0,85954.0,4.23963584]
[1742451028885,0.19143142,85955.0,85954.0,4.23963584]
[1742451029082,0.28450142,85955.0,85954.0,4.23963584]
[1742451029886,0.02203142,85955.0,85954.0,4.23963584]
[1742451030187,0.18943142,85955.0,85954.0,4.23963584]
[1742451031289,0.28250142,85955.0,85954.0,4.23963584]
[1742451031588,0.18943142,85955.0,85954.0,4.23963584]
[1742451035886,0.28250142,85955.0,85954.0,4.23963584]
[1742451036081,0.18943142,85955.0,85954.0,4.23963584]
[1742451040609,0.28250142,85955.0,85954.0,4.23963584]
[1742451041099,0.26832793,85955.0,85954.0,4.23963584]
[1742451041286,0.10495708,85955.0,85954.0,4.23963584]
[1742451041486,0.19225708,85955.0,85954.0,4.23963584]
[1742451041993,0.10495708,85955.0,85954.0,4.23963584]
[1742451043096,0.10495708,85955.0,85954.0,4.35075584]
[1742451044100,0.10501753,85955.0,85954.0,4.35075584]
[1742451047093,0.02231753,85955.0,85954.0,4.63075584]
[1742451048495,0.10881753,85955.0,85954.0,4.63075584]
[1742451050400,0.19831753,85955.0,85954.0,4.63075584]
[1742451051593,0.02231753,85955.0,85954.0,4.63075584]
[1742451051794,0.02231753,85955.0,85954.0,4.63175584]
[1742451051997,0.02231753,85955.0,85954.0,4.63275584]
[1742451052400,0.02231753,85955.0,85954.0,4.63175584]
[1742451052598,0.02231753,85955.0,85954.0,4.63275584]
[1742451056294,0.02226478,85955.0,85954.0,4.63275584]
[1742451058606,0.10726478,85955.0,85954.0,4.63275584]
[1742451059608,0.10725628,85955.0,85954.0,4.63275584]
[1742451063207,0.10727045,85955.0,85954.0,4.63275584]
[1742451065102,0.10725635,85955.0,85954.0,4.63275584]
[1742451067108,0.09742793,85955.0,85954.0,4.63275584]
[1742451067314,0.10725704,85955.0,85954.0,4.63275584]
[1742451067613,0.10726141,85955.0,85954.0,4.63275584]
[1742451069304,0.13456141,85955.0,85954.0,4.24163584]
[1742451069610,0.22763141,85955.0,85954.0,4.07013584]
[1742451070112,0.31673141,85955.0,85954.0,4.07013584]
[1742451070414,0.28943141,85955.0,85954.0,4.07013584]
[1742451070621,0.28943141,85955.0,85954.0,4.06913584]
[1742451071407,0.28937512,85955.0,85954.0,4.06813584]
[1742451072117,0.19630512,85955.0,85954.0,4.06913584]
[1742451072303,0.19630512,85955.0,85954.0,4.32853584]